[Event "Betsys MČR v online bleskovém šachu 2021"]
[Site "Chess.com"]
[Date "2021.04.17"]
[Round "12"]
[White "Innerz98"]
[Black "Adam20032007"]
[Result "1-0"]
[WhiteElo "2113"]
[BlackElo "1858"]
[TimeControl "180+1"]
[EndTime "10:55:52 PDT"]
[Termination "Uživatel Innerz98 zvítězil matem"]

1. d4 {[%clk 0:03:00.9]} 1... Nf6 {[%clk 0:02:56.6]} 2. Bf4 {[%clk 0:03:01]}
2... e6 {[%clk 0:02:56]} 3. e3 {[%clk 0:03:01.1]} 3... d5 {[%clk 0:02:55.5]} 4.
Bd3 {[%clk 0:03:00.6]} 4... c6 {[%clk 0:02:55.9]} 5. Nd2 {[%clk 0:03:00]} 5...
Bd6 {[%clk 0:02:55.9]} 6. Bg3 {[%clk 0:02:59.7]} 6... O-O {[%clk 0:02:53.5]} 7.
Ngf3 {[%clk 0:02:59.8]} 7... Nbd7 {[%clk 0:02:53.8]} 8. c3 {[%clk 0:02:59.7]}
8... Re8 {[%clk 0:02:52.6]} 9. Ne5 {[%clk 0:02:59.9]} 9... Qc7 {[%clk
0:02:52.1]} 10. f4 {[%clk 0:02:59.9]} 10... c5 {[%clk 0:02:52.1]} 11. O-O {[%clk
0:02:56.5]} 11... c4 {[%clk 0:02:48.7]} 12. Bc2 {[%clk 0:02:56.5]} 12... b5
{[%clk 0:02:48.6]} 13. Bh4 {[%clk 0:02:54.4]} 13... a5 {[%clk 0:02:48]} 14. Rf3
{[%clk 0:02:54.4]} 14... b4 {[%clk 0:02:38.6]} 15. Rh3 {[%clk 0:02:53.5]} 15...
bxc3 {[%clk 0:02:34.9]} 16. bxc3 {[%clk 0:02:54.4]} 16... Bb7 {[%clk 0:02:30]}
17. Nxd7 {[%clk 0:02:42.3]} 17... Nxd7 {[%clk 0:02:25.5]} 18. Qh5 {[%clk
0:02:41.7]} 18... g6 {[%clk 0:02:24.7]} 19. Qxh7+ {[%clk 0:02:32]} 19... Kxh7
{[%clk 0:02:21.8]} 20. Bf6+ {[%clk 0:02:32]} 20... Kg8 {[%clk 0:02:18.5]} 21.
Rh8# {[%clk 0:02:32.9]} 1-0

[Event "Betsys MČR v online bleskovém šachu 2021"]
[Site "Chess.com"]
[Date "2021.04.17"]
[Round "12"]
[White "JonasFadrny"]
[Black "hvanacek"]
[Result "1-0"]
[WhiteElo "744"]
[BlackElo "910"]
[TimeControl "180+1"]
[EndTime "10:55:53 PDT"]
[Termination "Uživatel JonasFadrny zvítězil po vzdání soupeře"]

1. e4 {[%clk 0:03:00.9]} 1... e5 {[%clk 0:02:43.5]} 2. Bc4 {[%clk 0:03:01.1]}
2... Nc6 {[%clk 0:02:39.2]} 3. Qh5 {[%clk 0:03:00.5]} 3... g6 {[%clk 0:02:30.9]}
4. Qf3 {[%clk 0:02:58.8]} 4... Qe7 {[%clk 0:02:19.4]} 5. b3 {[%clk 0:02:55.1]}
5... Nd4 {[%clk 0:02:16.3]} 6. Ba3 {[%clk 0:02:51.4]} 6... Nxc2+ {[%clk
0:02:12.8]} 7. Kd1 {[%clk 0:02:50]} 7... Nd4 {[%clk 0:02:08.2]} 8. Bxe7 {[%clk
0:02:47.5]} 8... Nxf3 {[%clk 0:02:07.4]} 9. Bxf8 {[%clk 0:02:46.5]} 9... Nxg1
{[%clk 0:02:06.6]} 10. Bg7 {[%clk 0:02:44.3]} 10... d5 {[%clk 0:01:58.4]} 11.
Bxh8 {[%clk 0:02:43.9]} 11... dxc4 {[%clk 0:01:57.8]} 12. Rxg1 {[%clk
0:02:43.7]} 12... Nf6 {[%clk 0:01:55.8]} 13. Bxf6 {[%clk 0:02:41.3]} 1-0

[Event "Betsys MČR v online bleskovém šachu 2021"]
[Site "Chess.com"]
[Date "2021.04.17"]
[Round "12"]
[White "tryskomys"]
[Black "Krvelacny_krecek"]
[Result "0-1"]
[WhiteElo "1615"]
[BlackElo "2342"]
[TimeControl "180+1"]
[EndTime "10:56:24 PDT"]
[Termination "Uživatel Krvelacny_krecek zvítězil po vzdání soupeře"]

1. e4 {[%clk 0:03:00.9]} 1... e5 {[%clk 0:02:59.5]} 2. Nf3 {[%clk 0:02:59.4]}
2... Nc6 {[%clk 0:02:59.4]} 3. d4 {[%clk 0:02:49.8]} 3... exd4 {[%clk
0:02:58.7]} 4. Bc4 {[%clk 0:02:49.6]} 4... Nf6 {[%clk 0:02:58.4]} 5. O-O {[%clk
0:02:47.3]} 5... Nxe4 {[%clk 0:02:57.5]} 6. Re1 {[%clk 0:02:46.7]} 6... d5
{[%clk 0:02:57.7]} 7. Bxd5 {[%clk 0:02:46.7]} 7... Qxd5 {[%clk 0:02:58.2]} 8.
Nc3 {[%clk 0:02:46.8]} 8... Qd8 {[%clk 0:02:58.2]} 9. Nxe4 {[%clk 0:02:44.3]}
9... Be7 {[%clk 0:02:58.3]} 10. Bg5 {[%clk 0:02:42.7]} 10... f6 {[%clk
0:02:58.6]} 11. Nxf6+ {[%clk 0:02:22.3]} 11... gxf6 {[%clk 0:02:58]} 12. Bxf6
{[%clk 0:02:22.2]} 12... O-O {[%clk 0:02:57.9]} 13. Bxe7 {[%clk 0:02:14]} 13...
Nxe7 {[%clk 0:02:57.4]} 14. Nxd4 {[%clk 0:02:11]} 14... Ng6 {[%clk 0:02:57.3]}
15. c3 {[%clk 0:02:08.7]} 15... Kh8 {[%clk 0:02:55.3]} 16. Qh5 {[%clk
0:02:02.5]} 16... Qf6 {[%clk 0:02:52.4]} 17. Rf1 {[%clk 0:01:59.8]} 17... b6
{[%clk 0:02:45.8]} 18. Qd5 {[%clk 0:01:54.1]} 18... Ba6 {[%clk 0:02:41.4]} 19.
c4 {[%clk 0:01:50.3]} 19... Rad8 {[%clk 0:02:39.4]} 0-1

[Event "Betsys MČR v online bleskovém šachu 2021"]
[Site "Chess.com"]
[Date "2021.04.17"]
[Round "12"]
[White "pburak"]
[Black "Honzik1950"]
[Result "0-1"]
[WhiteElo "1272"]
[BlackElo "1498"]
[TimeControl "180+1"]
[EndTime "10:56:27 PDT"]
[Termination "Uživatel Honzik1950 zvítězil po vzdání soupeře"]

1. e4 {[%clk 0:02:59.9]} 1... a6 {[%clk 0:03:00]} 2. Nf3 {[%clk 0:02:58]} 2...
b5 {[%clk 0:03:00.1]} 3. d4 {[%clk 0:02:57.2]} 3... e6 {[%clk 0:03:00.4]} 4. Be2
{[%clk 0:02:55]} 4... Nf6 {[%clk 0:02:58.3]} 5. e5 {[%clk 0:02:51.1]} 5... Nd5
{[%clk 0:02:57.8]} 6. c4 {[%clk 0:02:48.5]} 6... bxc4 {[%clk 0:02:57.2]} 7. Bxc4
{[%clk 0:02:48]} 7... Bb7 {[%clk 0:02:57.5]} 8. O-O {[%clk 0:02:45.2]} 8... Be7
{[%clk 0:02:56.2]} 9. Nc3 {[%clk 0:02:41.4]} 9... Nxc3 {[%clk 0:02:54.9]} 10.
bxc3 {[%clk 0:02:41.2]} 10... O-O {[%clk 0:02:55]} 11. Be3 {[%clk 0:02:34.4]}
11... d6 {[%clk 0:02:54.4]} 12. Rb1 {[%clk 0:02:30.8]} 12... Qc8 {[%clk
0:02:53.4]} 13. Qd3 {[%clk 0:02:16.7]} 13... Nd7 {[%clk 0:02:50.7]} 14. Bg5
{[%clk 0:02:06.8]} 14... Bxg5 {[%clk 0:02:35.4]} 15. Nxg5 {[%clk 0:02:05.8]}
15... g6 {[%clk 0:02:35.8]} 16. Qh3 {[%clk 0:02:03.9]} 16... h5 {[%clk
0:02:32.5]} 17. g4 {[%clk 0:02:00.3]} 17... Kg7 {[%clk 0:02:29.7]} 18. gxh5
{[%clk 0:01:58.8]} 18... Rh8 {[%clk 0:02:29.1]} 19. Qf3 {[%clk 0:01:51.9]} 19...
Bxf3 {[%clk 0:02:25.6]} 0-1

[Event "Betsys MČR v online bleskovém šachu 2021"]
[Site "Chess.com"]
[Date "2021.04.17"]
[Round "12"]
[White "Fafin1"]
[Black "DavidZidlicky"]
[Result "0-1"]
[WhiteElo "1343"]
[BlackElo "1630"]
[TimeControl "180+1"]
[EndTime "10:56:34 PDT"]
[Termination "Uživatel DavidZidlicky zvítězil po vzdání soupeře"]

1. e4 {[%clk 0:03:00.9]} 1... c5 {[%clk 0:02:57.1]} 2. Bc4 {[%clk 0:02:59.2]}
2... Nc6 {[%clk 0:02:56.3]} 3. Nf3 {[%clk 0:02:58.8]} 3... h6 {[%clk 0:02:53.6]}
4. d3 {[%clk 0:02:58.6]} 4... d6 {[%clk 0:02:53.4]} 5. O-O {[%clk 0:02:57.9]}
5... e5 {[%clk 0:02:46.3]} 6. h3 {[%clk 0:02:54.2]} 6... Nf6 {[%clk 0:02:46.1]}
7. Be3 {[%clk 0:02:52.7]} 7... Be7 {[%clk 0:02:45.1]} 8. Nc3 {[%clk 0:02:52.1]}
8... a6 {[%clk 0:02:40.5]} 9. a4 {[%clk 0:02:51.6]} 9... Be6 {[%clk 0:02:39.7]}
10. Bxe6 {[%clk 0:02:50]} 10... fxe6 {[%clk 0:02:39.7]} 11. b3 {[%clk
0:02:49.6]} 11... O-O {[%clk 0:02:39.2]} 12. Nh4 {[%clk 0:02:40.5]} 12... Nxe4
{[%clk 0:02:32.1]} 13. Ng6 {[%clk 0:02:38.6]} 13... Nxc3 {[%clk 0:02:28]} 14.
Nxe7+ {[%clk 0:02:34.6]} 14... Qxe7 {[%clk 0:02:26.3]} 15. Qd2 {[%clk 0:02:30]}
15... Nd5 {[%clk 0:02:25.2]} 16. c4 {[%clk 0:02:17.9]} 16... Nf4 {[%clk
0:02:18.2]} 17. Kh2 {[%clk 0:02:13]} 17... Nd4 {[%clk 0:02:10.6]} 18. g3 {[%clk
0:02:02.8]} 18... Nf3+ {[%clk 0:02:07.4]} 0-1

[Event "Betsys MČR v online bleskovém šachu 2021"]
[Site "Chess.com"]
[Date "2021.04.17"]
[Round "12"]
[White "Bohous13"]
[Black "KJ327NR"]
[Result "1/2-1/2"]
[WhiteElo "2244"]
[BlackElo "2356"]
[TimeControl "180+1"]
[EndTime "10:56:37 PDT"]
[Termination "Remíza dohodou"]

1. e4 {[%clk 0:03:00.9]} 1... e5 {[%clk 0:02:59]} 2. Nf3 {[%clk 0:03:00.3]} 2...
Nc6 {[%clk 0:02:58.8]} 3. d4 {[%clk 0:03:00.6]} 3... exd4 {[%clk 0:02:59]} 4.
Bc4 {[%clk 0:03:00.1]} 4... Nf6 {[%clk 0:02:59.1]} 5. O-O {[%clk 0:02:59.5]}
5... Nxe4 {[%clk 0:02:57.8]} 6. Re1 {[%clk 0:02:59.7]} 6... d5 {[%clk
0:02:53.6]} 7. Bxd5 {[%clk 0:02:59.8]} 7... Qxd5 {[%clk 0:02:53]} 8. Nc3 {[%clk
0:03:00.4]} 8... Qd7 {[%clk 0:02:52.2]} 9. Rxe4+ {[%clk 0:02:57.8]} 9... Be7
{[%clk 0:02:47.4]} 10. Nxd4 {[%clk 0:02:57.5]} 10... f5 {[%clk 0:02:43.4]} 11.
Rf4 {[%clk 0:02:57.2]} 11... O-O {[%clk 0:02:40.4]} 12. Nxc6 {[%clk 0:02:56.9]}
12... Qxc6 {[%clk 0:02:39.4]} 13. Qd5+ {[%clk 0:02:56]} 13... Qxd5 {[%clk
0:02:30]} 14. Nxd5 {[%clk 0:02:55.3]} 14... Bd6 {[%clk 0:02:29.4]} 15. Rd4
{[%clk 0:02:54.7]} 15... Be6 {[%clk 0:02:28.5]} 16. Bf4 {[%clk 0:02:49.7]} 16...
Rad8 {[%clk 0:02:18.7]} 17. Rad1 {[%clk 0:02:45]} 17... Bxf4 {[%clk 0:01:53.4]}
18. Nxf4 {[%clk 0:02:37.7]} 18... Rxd4 {[%clk 0:01:52.7]} 19. Rxd4 {[%clk
0:02:37]} 19... Kf7 {[%clk 0:01:52.6]} 20. f3 {[%clk 0:02:27]} 20... g5 {[%clk
0:01:50.5]} 21. Nxe6 {[%clk 0:02:26.4]} 21... Kxe6 {[%clk 0:01:50.3]} 22. Kf2
{[%clk 0:02:26.6]} 1/2-1/2

[Event "Betsys MČR v online bleskovém šachu 2021"]
[Site "Chess.com"]
[Date "2021.04.17"]
[Round "12"]
[White "Tomasbezdek07"]
[Black "Millbo64"]
[Result "0-1"]
[WhiteElo "1696"]
[BlackElo "1978"]
[TimeControl "180+1"]
[EndTime "10:56:47 PDT"]
[Termination "Uživatel Millbo64 zvítězil po vzdání soupeře"]

1. e4 {[%clk 0:03:00.9]} 1... c6 {[%clk 0:03:00.3]} 2. d4 {[%clk 0:02:59.8]}
2... d5 {[%clk 0:03:00.4]} 3. Nc3 {[%clk 0:03:00.1]} 3... dxe4 {[%clk
0:02:58.7]} 4. Nxe4 {[%clk 0:03:00.7]} 4... Bf5 {[%clk 0:02:59.6]} 5. Nc5 {[%clk
0:03:00]} 5... b6 {[%clk 0:02:50.2]} 6. Nb3 {[%clk 0:02:57.9]} 6... e6 {[%clk
0:02:48.6]} 7. Bd3 {[%clk 0:02:55.6]} 7... Bxd3 {[%clk 0:02:46.7]} 8. Qxd3
{[%clk 0:02:54.7]} 8... Nf6 {[%clk 0:02:46.8]} 9. Bg5 {[%clk 0:02:53.5]} 9...
Be7 {[%clk 0:02:46.6]} 10. Nf3 {[%clk 0:02:52.2]} 10... O-O {[%clk 0:02:46.3]}
11. O-O {[%clk 0:02:51.6]} 11... Nbd7 {[%clk 0:02:46.5]} 12. Rfe1 {[%clk
0:02:50.8]} 12... Nd5 {[%clk 0:02:46.5]} 13. Bxe7 {[%clk 0:02:49.2]} 13... Qxe7
{[%clk 0:02:46.4]} 14. c3 {[%clk 0:02:45.2]} 14... Rad8 {[%clk 0:02:43.2]} 15.
Qe2 {[%clk 0:02:38.4]} 15... c5 {[%clk 0:02:42.2]} 16. Rad1 {[%clk 0:02:34.6]}
16... Nf4 {[%clk 0:02:39.2]} 17. Qe4 {[%clk 0:02:29.5]} 17... Ng6 {[%clk
0:02:37.4]} 18. dxc5 {[%clk 0:02:19.5]} 18... Nxc5 {[%clk 0:02:37.4]} 19. Nxc5
{[%clk 0:02:18]} 19... Qxc5 {[%clk 0:02:37.5]} 20. Nd4 {[%clk 0:02:13.1]} 20...
Qc4 {[%clk 0:02:23.3]} 21. a3 {[%clk 0:02:08.5]} 21... e5 {[%clk 0:02:16.3]} 22.
Nf3 {[%clk 0:02:01.3]} 22... Qxe4 {[%clk 0:02:13.6]} 0-1

[Event "Betsys MČR v online bleskovém šachu 2021"]
[Site "Chess.com"]
[Date "2021.04.17"]
[Round "12"]
[White "EDA16"]
[Black "Patrik_Kohm"]
[Result "0-1"]
[WhiteElo "1119"]
[BlackElo "1393"]
[TimeControl "180+1"]
[EndTime "10:56:55 PDT"]
[Termination "Uživatel Patrik_Kohm zvítězil matem"]

1. d4 {[%clk 0:03:00.9]} 1... d5 {[%clk 0:02:59.6]} 2. c4 {[%clk 0:03:00.5]}
2... e6 {[%clk 0:02:59.2]} 3. Nc3 {[%clk 0:03:00.4]} 3... Nf6 {[%clk 0:02:59.3]}
4. Bg5 {[%clk 0:03:00]} 4... Nbd7 {[%clk 0:02:59.3]} 5. cxd5 {[%clk 0:02:59.9]}
5... e5 {[%clk 0:02:58.8]} 6. dxe5 {[%clk 0:02:54.1]} 6... Nxe5 {[%clk
0:02:57.2]} 7. Nf3 {[%clk 0:02:52.9]} 7... Nxf3+ {[%clk 0:02:56.2]} 8. exf3
{[%clk 0:02:52.6]} 8... Be7 {[%clk 0:02:55.3]} 9. Bc4 {[%clk 0:02:45.3]} 9...
O-O {[%clk 0:02:54.2]} 10. O-O {[%clk 0:02:43.7]} 10... Bf5 {[%clk 0:02:53.2]}
11. Bd3 {[%clk 0:02:38.6]} 11... Bxd3 {[%clk 0:02:50.6]} 12. Qxd3 {[%clk
0:02:38.5]} 12... h6 {[%clk 0:02:49.9]} 13. Bxf6 {[%clk 0:02:37.5]} 13... Bxf6
{[%clk 0:02:48.1]} 14. Rac1 {[%clk 0:02:37.3]} 14... Qd7 {[%clk 0:02:43.8]} 15.
Ne4 {[%clk 0:02:36]} 15... Be7 {[%clk 0:02:40.5]} 16. Rfe1 {[%clk 0:02:33.5]}
16... Bd6 {[%clk 0:02:37.3]} 17. Nc5 {[%clk 0:02:31.2]} 17... Bxc5 {[%clk
0:02:33.3]} 18. Rxc5 {[%clk 0:02:29.7]} 18... c6 {[%clk 0:02:33]} 19. Rd1 {[%clk
0:02:24.8]} 19... cxd5 {[%clk 0:02:29.3]} 20. Rxd5 {[%clk 0:02:23.1]} 20... Qc6
{[%clk 0:02:29.1]} 21. Rd4 {[%clk 0:02:16.1]} 21... Rac8 {[%clk 0:02:25.9]} 22.
b3 {[%clk 0:02:09.7]} 22... Qc2 {[%clk 0:02:21.7]} 23. Qxc2 {[%clk 0:02:07.9]}
23... Rxc2 {[%clk 0:02:22.6]} 24. R4d2 {[%clk 0:02:07.3]} 24... Rc7 {[%clk
0:02:19.7]} 25. Rd7 {[%clk 0:02:05.8]} 25... Rfc8 {[%clk 0:02:12.7]} 26. Rxc7
{[%clk 0:02:03.9]} 26... Rxc7 {[%clk 0:02:13.6]} 27. Rd2 {[%clk 0:02:03.3]}
27... Rc1+ {[%clk 0:02:12.2]} 28. Rd1 {[%clk 0:01:55.7]} 28... Rxd1# {[%clk
0:02:13.1]} 0-1

[Event "Betsys MČR v online bleskovém šachu 2021"]
[Site "Chess.com"]
[Date "2021.04.17"]
[Round "12"]
[White "Johanna94"]
[Black "masterofbuzkashi"]
[Result "0-1"]
[WhiteElo "2077"]
[BlackElo "2242"]
[TimeControl "180+1"]
[EndTime "10:57:03 PDT"]
[Termination "Uživatel masterofbuzkashi zvítězil matem"]

1. d4 {[%clk 0:03:00.9]} 1... c5 {[%clk 0:03:00.2]} 2. d5 {[%clk 0:02:58.3]}
2... d6 {[%clk 0:03:00.5]} 3. c4 {[%clk 0:02:58.5]} 3... g6 {[%clk 0:03:00.8]}
4. Nf3 {[%clk 0:02:57.2]} 4... Bg7 {[%clk 0:03:01]} 5. e4 {[%clk 0:02:57.4]}
5... Nd7 {[%clk 0:03:00.4]} 6. Bd3 {[%clk 0:02:52.2]} 6... Ngf6 {[%clk
0:03:00.4]} 7. Nc3 {[%clk 0:02:51.5]} 7... O-O {[%clk 0:03:00.5]} 8. h3 {[%clk
0:02:51.4]} 8... Ne5 {[%clk 0:03:01.1]} 9. Nxe5 {[%clk 0:02:46]} 9... dxe5
{[%clk 0:03:02]} 10. Be3 {[%clk 0:02:45.8]} 10... b6 {[%clk 0:03:01.3]} 11. O-O
{[%clk 0:02:44]} 11... Ne8 {[%clk 0:03:01.4]} 12. f4 {[%clk 0:02:38.8]} 12...
Nd6 {[%clk 0:03:01]} 13. Qe2 {[%clk 0:02:20.3]} 13... f5 {[%clk 0:03:00.2]} 14.
Rae1 {[%clk 0:02:12.8]} 14... fxe4 {[%clk 0:02:52.6]} 15. Nxe4 {[%clk
0:02:12.1]} 15... exf4 {[%clk 0:02:50.9]} 16. Bxf4 {[%clk 0:02:08.1]} 16... Nf5
{[%clk 0:02:48.2]} 17. Ng5 {[%clk 0:02:03.3]} 17... Nd4 {[%clk 0:02:45.9]} 18.
Qd2 {[%clk 0:02:01]} 18... Bf5 {[%clk 0:02:39.8]} 19. Bxf5 {[%clk 0:01:58.4]}
19... Rxf5 {[%clk 0:02:38.3]} 20. Ne6 {[%clk 0:01:52.2]} 20... Nxe6 {[%clk
0:02:32.8]} 21. Rxe6 {[%clk 0:01:51.9]} 21... Qf8 {[%clk 0:02:28.5]} 22. Ree1
{[%clk 0:01:51.7]} 22... Rd8 {[%clk 0:02:20.3]} 23. Bg3 {[%clk 0:01:45.5]} 23...
Bd4+ {[%clk 0:02:17.8]} 24. Kh2 {[%clk 0:01:44.3]} 24... Rxf1 {[%clk 0:02:15.2]}
25. Rxf1 {[%clk 0:01:44.6]} 25... Qxf1 {[%clk 0:02:13.2]} 26. Qg5 {[%clk
0:01:44.5]} 26... Qg1# {[%clk 0:02:12.4]} 0-1

[Event "Betsys MČR v online bleskovém šachu 2021"]
[Site "Chess.com"]
[Date "2021.04.17"]
[Round "12"]
[White "VildaSt"]
[Black "adambelaska"]
[Result "0-1"]
[WhiteElo "1281"]
[BlackElo "1388"]
[TimeControl "180+1"]
[EndTime "10:57:07 PDT"]
[Termination "Uživatel adambelaska zvítězil po vzdání soupeře"]

1. e4 {[%clk 0:03:00.9]} 1... e5 {[%clk 0:02:54.8]} 2. Nf3 {[%clk 0:03:00.8]}
2... Nc6 {[%clk 0:02:45.1]} 3. Bb5 {[%clk 0:03:00.2]} 3... Nf6 {[%clk
0:02:39.5]} 4. Nc3 {[%clk 0:02:59]} 4... Bc5 {[%clk 0:02:32.6]} 5. O-O {[%clk
0:02:52.9]} 5... a6 {[%clk 0:02:26.4]} 6. Bd3 {[%clk 0:02:50.7]} 6... Nb4 {[%clk
0:02:21.6]} 7. a3 {[%clk 0:02:48.7]} 7... Nxd3 {[%clk 0:02:18.4]} 8. cxd3 {[%clk
0:02:48.1]} 8... d6 {[%clk 0:02:10.4]} 9. b4 {[%clk 0:02:41.2]} 9... Bb6 {[%clk
0:02:05.2]} 10. Bb2 {[%clk 0:02:40.4]} 10... O-O {[%clk 0:02:00.3]} 11. Ne2
{[%clk 0:02:40.3]} 11... Bg4 {[%clk 0:01:57.1]} 12. h3 {[%clk 0:02:30.6]} 12...
Bxf3 {[%clk 0:01:52.3]} 13. gxf3 {[%clk 0:02:29.9]} 13... Qd7 {[%clk 0:01:45.3]}
14. Kh1 {[%clk 0:02:29.6]} 14... Qxh3+ {[%clk 0:01:40]} 15. Kg1 {[%clk
0:02:26.6]} 15... Nh5 {[%clk 0:01:36.5]} 16. d4 {[%clk 0:02:21.2]} 16... exd4
{[%clk 0:01:27.5]} 17. Bxd4 {[%clk 0:02:20]} 17... Bxd4 {[%clk 0:01:25.6]} 18.
Nxd4 {[%clk 0:02:20.1]} 18... Nf4 {[%clk 0:01:20.5]} 0-1

[Event "Betsys MČR v online bleskovém šachu 2021"]
[Site "Chess.com"]
[Date "2021.04.17"]
[Round "12"]
[White "Anyna"]
[Black "Jaja15F"]
[Result "0-1"]
[WhiteElo "857"]
[BlackElo "1136"]
[TimeControl "180+1"]
[EndTime "10:57:17 PDT"]
[Termination "Uživatel Jaja15F zvítězil po vzdání soupeře"]

1. d4 {[%clk 0:02:58.7]} 1... e5 {[%clk 0:02:59.2]} 2. Nf3 {[%clk 0:02:59.6]}
2... e4 {[%clk 0:02:56.7]} 3. Nfd2 {[%clk 0:02:59.3]} 3... Nf6 {[%clk
0:02:55.1]} 4. Nc3 {[%clk 0:02:56.1]} 4... d5 {[%clk 0:02:52.6]} 5. e3 {[%clk
0:02:52.4]} 5... Bb4 {[%clk 0:02:50.5]} 6. Be2 {[%clk 0:02:47.8]} 6... Be6
{[%clk 0:02:47.4]} 7. O-O {[%clk 0:02:46.3]} 7... Nc6 {[%clk 0:02:45.2]} 8. Bb5
{[%clk 0:02:36]} 8... Bxc3 {[%clk 0:02:40.8]} 9. bxc3 {[%clk 0:02:33.9]} 9...
Qd7 {[%clk 0:02:39.4]} 10. Nb3 {[%clk 0:02:31.7]} 10... a6 {[%clk 0:02:37.9]}
11. Nc5 {[%clk 0:02:21.5]} 11... Qe7 {[%clk 0:02:29.5]} 12. Bxc6+ {[%clk
0:02:12.5]} 12... bxc6 {[%clk 0:02:28.3]} 13. Ba3 {[%clk 0:02:11.3]} 13... Nd7
{[%clk 0:01:59.3]} 14. Nb7 {[%clk 0:02:04.3]} 14... Qxa3 {[%clk 0:01:50.8]} 15.
Qh5 {[%clk 0:01:58.4]} 15... Rb8 {[%clk 0:01:42.3]} 16. Rab1 {[%clk 0:01:57.8]}
16... O-O {[%clk 0:01:35.8]} 17. Nc5 {[%clk 0:01:56.6]} 17... Rxb1 {[%clk
0:01:30]} 18. Nxd7 {[%clk 0:01:57.5]} 18... Rxf1+ {[%clk 0:01:28.7]} 19. Kxf1
{[%clk 0:01:56.5]} 0-1

[Event "Betsys MČR v online bleskovém šachu 2021"]
[Site "Chess.com"]
[Date "2021.04.17"]
[Round "12"]
[White "SajdlJosef"]
[Black "jankrelina07"]
[Result "1-0"]
[WhiteElo "1821"]
[BlackElo "1606"]
[TimeControl "180+1"]
[EndTime "10:57:20 PDT"]
[Termination "Uživatel SajdlJosef zvítězil po vzdání soupeře"]

1. d4 {[%clk 0:03:00.9]} 1... Nf6 {[%clk 0:02:59.2]} 2. Nf3 {[%clk 0:03:00.5]}
2... g6 {[%clk 0:02:59.5]} 3. Bf4 {[%clk 0:03:00]} 3... d6 {[%clk 0:02:57.2]} 4.
e3 {[%clk 0:02:58.6]} 4... Bg7 {[%clk 0:02:57.4]} 5. Nbd2 {[%clk 0:02:58.1]}
5... Bd7 {[%clk 0:02:57.5]} 6. Bc4 {[%clk 0:02:56.1]} 6... a6 {[%clk 0:02:56.2]}
7. a4 {[%clk 0:02:54.7]} 7... O-O {[%clk 0:02:55.9]} 8. O-O {[%clk 0:02:53.3]}
8... Nc6 {[%clk 0:02:55.5]} 9. c3 {[%clk 0:02:51]} 9... Na5 {[%clk 0:02:50.8]}
10. Ba2 {[%clk 0:02:47.6]} 10... Nc6 {[%clk 0:02:48.2]} 11. h3 {[%clk
0:02:36.5]} 11... b6 {[%clk 0:02:44.9]} 12. Re1 {[%clk 0:02:32]} 12... Nh5
{[%clk 0:02:43.3]} 13. Bh2 {[%clk 0:02:30]} 13... Re8 {[%clk 0:02:41.3]} 14. Ng5
{[%clk 0:02:22.9]} 14... h6 {[%clk 0:02:36.2]} 15. Bxf7+ {[%clk 0:02:17.6]}
15... Kh8 {[%clk 0:02:34.6]} 16. Bxe8 {[%clk 0:02:14.6]} 16... Bxe8 {[%clk
0:02:34.2]} 17. Ngf3 {[%clk 0:02:08.4]} 17... e5 {[%clk 0:02:24.9]} 18. dxe5
{[%clk 0:02:04.1]} 18... Nxe5 {[%clk 0:02:24.4]} 19. Nxe5 {[%clk 0:02:02.6]}
19... Bxe5 {[%clk 0:02:24]} 20. Bxe5+ {[%clk 0:01:59.7]} 20... dxe5 {[%clk
0:02:24.1]} 21. Nc4 {[%clk 0:01:55]} 21... Qf6 {[%clk 0:02:23.4]} 22. Qd5 {[%clk
0:01:42]} 22... Bf7 {[%clk 0:02:18.3]} 23. Qxa8+ {[%clk 0:01:38.8]} 23... Kg7
{[%clk 0:02:17]} 24. Qe4 {[%clk 0:01:28.9]} 24... c5 {[%clk 0:02:14.7]} 25. b3
{[%clk 0:01:23.6]} 1-0

[Event "Betsys MČR v online bleskovém šachu 2021"]
[Site "Chess.com"]
[Date "2021.04.17"]
[Round "12"]
[White "Kamilotka"]
[Black "Tah_na_g12"]
[Result "1-0"]
[WhiteElo "1582"]
[BlackElo "1175"]
[TimeControl "180+1"]
[EndTime "10:57:22 PDT"]
[Termination "Uživatel Kamilotka zvítězil matem"]

1. e4 {[%clk 0:03:00.9]} 1... e5 {[%clk 0:02:59.5]} 2. d4 {[%clk 0:03:00.7]}
2... exd4 {[%clk 0:02:58.4]} 3. Bc4 {[%clk 0:03:00.7]} 3... Nc6 {[%clk
0:02:54.3]} 4. Nf3 {[%clk 0:02:57.4]} 4... Bb4+ {[%clk 0:02:52.5]} 5. c3 {[%clk
0:02:56.4]} 5... dxc3 {[%clk 0:02:52]} 6. bxc3 {[%clk 0:02:56.5]} 6... Bc5
{[%clk 0:02:51.8]} 7. Qb3 {[%clk 0:02:54.2]} 7... Qe7 {[%clk 0:02:47.5]} 8. Nbd2
{[%clk 0:02:50.8]} 8... Nf6 {[%clk 0:02:45]} 9. Bd3 {[%clk 0:02:46.9]} 9... d6
{[%clk 0:02:36.2]} 10. O-O {[%clk 0:02:45.4]} 10... O-O {[%clk 0:02:33.7]} 11.
Qc2 {[%clk 0:02:41.4]} 11... Be6 {[%clk 0:02:30.6]} 12. Nb3 {[%clk 0:02:33.6]}
12... Bb6 {[%clk 0:02:26.9]} 13. Bg5 {[%clk 0:02:33.2]} 13... h6 {[%clk
0:02:25.1]} 14. Bh4 {[%clk 0:02:32.8]} 14... a6 {[%clk 0:02:21.9]} 15. Rfe1
{[%clk 0:02:30]} 15... d5 {[%clk 0:02:03.7]} 16. e5 {[%clk 0:02:24.9]} 16... g5
{[%clk 0:02:00.4]} 17. exf6 {[%clk 0:02:21.4]} 17... Qxf6 {[%clk 0:01:59.1]} 18.
Bg3 {[%clk 0:02:21]} 18... h5 {[%clk 0:01:51.6]} 19. Be5 {[%clk 0:02:18.6]}
19... Qe7 {[%clk 0:01:46.8]} 20. Qd2 {[%clk 0:02:06.4]} 20... Nxe5 {[%clk
0:01:43.7]} 21. Nxe5 {[%clk 0:02:05.1]} 21... c6 {[%clk 0:01:36.9]} 22. Qe2
{[%clk 0:02:03.2]} 22... h4 {[%clk 0:01:35.2]} 23. Qh5 {[%clk 0:01:59.9]} 23...
Bc7 {[%clk 0:01:34.6]} 24. Qh7# {[%clk 0:01:58.1]} 1-0